fUSD/lending_fUSD_20250216
["ID","MTS","AMOUNT","RATE_DAILY","PERIOD"]
[353218635,1739664031329,150.0,0.00014944,120]
[353218638,1739664091271,150.0,0.00018213,120]
[353218641,1739664150732,150.0,0.00018849,120]
[353218642,1739664271296,150.0,0.0001865,120]
[353218643,1739664390724,150.0,0.000193,120]
[353218650,1739664631809,-300.0,8.835e-05,2]
[353218651,1739664631819,-112.4830195,8.836e-05,2]
[353218652,1739664632017,-970.4329805,8.836e-05,2]
[353218653,1739664632027,-5904.2332,8.836e-05,2]
[353218654,1739664632037,-398.2706,8.836e-05,2]
[353218655,1739664632047,-18229.0326,8.836e-05,2]
[353218656,1739664632056,-420.0,9.718e-05,2]
[353218657,1739664632067,-150.0,9.719e-05,2]
[353218658,1739664632076,-150.0,9.719e-05,2]
[353218659,1739664632086,-150.0,9.719e-05,2]
[353218660,1739664632096,-1000.0,9.852e-05,2]
[353218661,1739664632105,-164.19,0.0001003,2]
[353218662,1739664632116,-800.0,0.00010058,2]
[353218663,1739664632125,-800.0,0.00010058,2]
[353218664,1739664632135,-435.53,0.00010106,2]
[353218665,1739664632144,-163.88,0.00010118,2]
[353218666,1739664632154,-163.01,0.00010137,2]
[353218667,1739664632163,-166.22,0.00010194,2]
[353218668,1739664632173,-500.0,0.00010384,2]
[353218669,1739664632182,-965.46,0.00010411,2]
[353218670,1739664632191,-755.28,0.00010501,2]
[353218671,1739664632200,-439.02,0.00010678,2]
[353218672,1739664632209,-587.0,0.0001069,2]
[353218673,1739664632218,-1131.57927178,0.00010819,2]
[353218674,1739664632228,-177.513,0.00010877,2]
[353218675,1739664632237,-168.29658498,0.000109,2]
[353218676,1739664632247,-500.0,0.00010958,2]
[353218677,1739664632256,-230.08169151,0.00010958,2]
[353218678,1739664632267,-500.0,0.00010958,2]
[353218679,1739664632277,-500.0,0.00010958,2]
[353218681,1739664632286,-500.0,0.00010958,2]
[353218683,1739664632297,-500.0,0.00010958,2]
[353218685,1739664632306,-500.0,0.00010958,2]
[353218687,1739664632315,-500.0,0.00010958,2]
[353218689,1739664632325,-500.0,0.00010958,2]
[353218691,1739664632334,-500.0,0.00010958,2]
[353218693,1739664632342,-500.0,0.00010958,2]
[353218694,1739664632352,-500.0,0.00010958,2]
[353218696,1739664632361,-500.0,0.00010958,2]
[353218698,1739664632370,-500.0,0.00010958,2]
[353218701,1739664632379,-500.0,0.00010958,2]
[353218703,1739664632389,-500.0,0.00010958,2]
[353218705,1739664632399,-500.0,0.00010958,2]
[353218707,1739664632408,-500.0,0.00010958,2]
[353218709,1739664632418,-500.0,0.00010958,2]
[353218711,1739664632428,-500.0,0.00010958,2]
[353218713,1739664632438,-500.0,0.00010958,2]
[353218715,1739664632447,-500.0,0.00010958,2]
[353218717,1739664632456,-500.0,0.00010958,2]
[353218719,1739664632465,-500.0,0.00010958,2]
[353218721,1739664632474,-500.0,0.00010958,2]
[353218723,1739664632483,-500.0,0.00010958,2]
[353218725,1739664632493,-500.0,0.00010958,2]
[353218728,1739664632503,-500.0,0.00010958,2]
[353218730,1739664632512,-500.0,0.00010958,2]
[353218731,1739664632522,-500.0,0.00010958,2]
[353218734,1739664632531,-500.0,0.00010958,2]
[353218735,1739664632541,-500.0,0.00010958,2]
[353218737,1739664632550,-500.0,0.00010958,2]
[353218739,1739664632560,-500.0,0.00010958,2]
[353218741,1739664632570,-500.0,0.00010958,2]
[353218743,1739664632579,-500.0,0.00010958,2]
[353218745,1739664632589,-500.0,0.00010958,2]
[353218747,1739664632599,-577.37297556,0.00010958,2]
[353218749,1739664632608,-500.0,0.00010958,2]
[353218751,1739664632619,-22.89793227,0.00010958,2]
[353218755,1739664632648,-2057.35406773,0.00010958,2]
[353218757,1739664632658,-500.0,0.00010958,2]
[353218759,1739664632667,-434.52938782,0.00010958,2]
[353218871,1739664641313,-65.47061218,0.00010958,2]
[353218872,1739664641323,-226.42678772,0.00010958,2]
[353218924,1739664690923,150.0,0.00019788,120]
[353218925,1739664717051,388.028,8.256e-05,2]
[353218926,1739664750713,150.0,0.00018655,120]
[353218927,1739664752141,717.65,8.219e-05,2]
[353218928,1739664787563,862.0,0.0002,120]
[353218929,1739664930809,150.0,0.000196,120]
[353218930,1739665136044,158.33,7.92e-05,2]
[353218931,1739665171069,150.0,0.00019294,120]
[353218932,1739665374705,2340.3501,8.256e-05,2]
[353218934,1739665584847,28065.3412,8.699e-05,2]
[353218935,1739665609790,517.3708,8.699e-05,2]
[353218936,1739665697925,500.0,0.0002,120]
[353218937,1739665698220,500.0,0.0002,120]
[353218938,1739665698472,500.0,0.0002,120]
[353218939,1739665698729,500.0,0.0002,120]
[353218940,1739665698976,500.0,0.0002,120]
[353218941,1739665699235,500.0,0.0002,120]
[353218942,1739665699480,500.0,0.0002,120]
[353218943,1739665699752,220.41,0.0002,120]
[353218944,1739665738594,157.9616,8.699e-05,2]
[353218946,1739665829444,681.76,8.219e-05,2]
[353218949,1739665832068,-415.4624,8.836e-05,2]
[353218951,1739665832077,-484.1275,8.836e-05,2]
[353218952,1739665832088,-88.8781,9.323e-05,2]
[353218954,1739665832125,-111.1219,9.323e-05,2]
[353218955,1739665832135,-200.0,9.719e-05,2]
[353218956,1739665832145,-200.0,9.719e-05,2]
[353218957,1739665832155,-684.64,9.81e-05,2]
[353218958,1739665832165,-219.8958278,9.811e-05,2]
[353218959,1739665832174,-250.0,9.811e-05,2]
[353218960,1739665832183,-300.0,9.924e-05,2]
[353218961,1739665832194,-1403.24233112,9.925e-05,2]
[353218962,1739665832206,-296.06898983,9.925e-05,2]
[353218963,1739665832221,-13823.55867905,9.925e-05,2]
[353218964,1739665832231,-163.33,9.932e-05,2]
[353218965,1739665832240,-200.0,9.954e-05,2]
[353218966,1739665832249,-695.11,9.965e-05,2]
[353218967,1739665832259,-500.0,9.973e-05,2]
[353218968,1739665832268,-1303282.69962371,0.0001,2]
[353218969,1739665832292,-11377.46314013,0.0001,2]
[353218970,1739665832372,-11651.42745904,0.0001,2]
[353219183,1739665838067,-67457.3525965,0.0001,2]
[353219184,1739665838076,-269.52110155,0.0001,2]
[353219185,1739665838086,-700.0,0.00010058,2]
[353219186,1739665838096,-470.13,0.00010137,2]
[353219187,1739665838105,-681.76,0.00010455,2]
[353219188,1739665838115,-150.0,0.00010499,2]
[353219189,1739665838124,-500.0,0.00010521,2]
[353219190,1739665838133,-265.05,0.00010578,2]
[353219191,1739665838143,-150.0,0.00010757,2]
[353219192,1739665838152,-150.0,0.00010763,2]
[353219193,1739665838162,-150.0,0.00010775,2]
[353219194,1739665838171,-1000.0,0.00010776,2]
[353219195,1739665838181,-150.0,0.00010783,2]
[353219196,1739665838190,-1000.0,0.00010805,2]
[353219197,1739665838200,-1000.0,0.00010822,2]
[353219198,1739665838210,-150.0,0.0001084,2]
[353219199,1739665838220,-150.0,0.00010844,2]
[353219200,1739665838229,-150.0,0.00010845,2]
[353219202,1739665838238,-150.0,0.00010848,2]
[353219204,1739665838248,-150.0,0.0001086,2]
[353219206,1739665838258,-1000.0,0.00010865,2]
[353219208,1739665838267,-150.0,0.00010889,2]
[353219210,1739665838277,-16626.69997741,0.000109,2]
[353219212,1739665838286,-4000.0,0.000109,2]
[353219213,1739665838295,-1000.0,0.0001092,2]
[353219214,1739665838305,-150.0,0.00010924,2]
[353219215,1739665838314,-150.0,0.00010927,2]
[353219216,1739665838325,-155.64289076,0.0001094,2]
[353219218,1739665838335,-150.0,0.00010946,2]
[353219220,1739665838344,-177.51337455,0.00010949,2]
[353219222,1739665838354,-150.0,0.00010952,2]
[353219224,1739665838364,-1160.660215,0.00010958,2]
[353219227,1739665838375,-840.908891,0.00010958,2]
[353219229,1739665838385,-405.61499998,0.00010958,2]
[353219230,1739665838395,-500.0,0.00010958,2]
[353219232,1739665838404,-500.0,0.00010958,2]
[353219234,1739665838414,-500.0,0.00010958,2]
[353219236,1739665838424,-500.0,0.00010958,2]
[353219238,1739665838434,-500.0,0.00010958,2]
[353219239,1739665838444,-500.0,0.00010958,2]
[353219240,1739665838453,-500.0,0.00010958,2]
[353219241,1739665838463,-500.0,0.00010958,2]
[353219242,1739665838473,-500.0,0.00010958,2]
[353219243,1739665838482,-500.0,0.00010958,2]
[353219244,1739665838493,-500.0,0.00010958,2]
[353219245,1739665838503,-500.0,0.00010958,2]
[353219246,1739665838514,-500.0,0.00010958,2]
[353219247,1739665838523,-500.0,0.00010958,2]
[353219248,1739665838533,-500.0,0.00010958,2]
[353219249,1739665838543,-500.0,0.00010958,2]
[353219250,1739665838553,-500.0,0.00010958,2]
[353219251,1739665838563,-500.0,0.00010958,2]
[353219252,1739665838576,-500.0,0.00010958,2]
[353219253,1739665838586,-500.0,0.00010958,2]
[353219254,1739665838596,-500.0,0.00010958,2]
[353219255,1739665838609,-500.0,0.00010958,2]
[353219256,1739665838620,-500.0,0.00010958,2]
[353219257,1739665838630,-500.0,0.00010958,2]
[353219258,1739665838641,-500.0,0.00010958,2]
[353219259,1739665838651,-500.0,0.00010958,2]
[353219260,1739665838662,-500.0,0.00010958,2]
[353219261,1739665838673,-500.0,0.00010958,2]
[353219262,1739665838683,-500.0,0.00010958,2]
[353219263,1739665838693,-500.0,0.00010958,2]
[353219264,1739665838703,-500.0,0.00010958,2]
[353219265,1739665838714,-500.0,0.00010958,2]
[353219266,1739665838724,-500.0,0.00010958,2]
[353219267,1739665838734,-500.0,0.00010958,2]
[353219268,1739665838744,-500.0,0.00010958,2]
[353219269,1739665838755,-500.0,0.00010958,2]
[353219270,1739665838764,-275.52384623,0.00010958,2]
[353219271,1739665838775,-500.0,0.00010958,2]
[353219272,1739665838785,-500.0,0.00010958,2]
[353219273,1739665838800,-500.0,0.00010958,2]
[353219274,1739665838810,-500.0,0.00010958,2]
[353219275,1739665838822,-400.98441129,0.00010958,2]
[353219276,1739665838832,-500.0,0.00010958,2]
[353219277,1739665838843,-500.0,0.00010958,2]
[353219278,1739665838853,-500.0,0.00010958,2]
[353219279,1739665838863,-500.0,0.00010958,2]
[353219280,1739665838875,-500.0,0.00010958,2]
[353219281,1739665838885,-500.0,0.00010958,2]
[353219282,1739665838895,-500.0,0.00010958,2]
[353219283,1739665838904,-500.0,0.00010958,2]
[353219284,1739665838914,-500.0,0.00010958,2]
[353219285,1739665838924,-500.0,0.00010958,2]
[353219286,1739665838934,-500.0,0.00010958,2]
[353219287,1739665838944,-500.0,0.00010958,2]
[353219288,1739665838955,-500.0,0.00010958,2]
[353219289,1739665838965,-500.0,0.00010958,2]
[353219290,1739665838975,-401.78695489,0.00010958,2]
[353219291,1739665838985,-500.0,0.00010958,2]
[353219292,1739665838995,-500.0,0.00010958,2]
[353219293,1739665839006,-281.02,0.00010958,2]
[353219294,1739665839016,-500.0,0.00010958,2]
[353219295,1739665839027,-500.0,0.00010958,2]
[353219296,1739665839036,-500.0,0.00010958,2]
[353219297,1739665839046,-500.0,0.00010958,2]
[353219298,1739665839056,-500.0,0.00010958,2]
[353219299,1739665839066,-500.0,0.00010958,2]
[353219300,1739665839075,-884.47,0.00010958,2]
[353219301,1739665839085,-1664.202,0.00010958,2]
[353219302,1739665839095,-500.0,0.00010958,2]
[353219303,1739665839105,-500.0,0.00010958,2]
[353219304,1739665839115,-500.0,0.00010958,2]
[353219305,1739665839125,-500.0,0.00010958,2]
[353219306,1739665839134,-500.0,0.00010958,2]
[353219307,1739665839143,-500.0,0.00010958,2]
[353219308,1739665839152,-500.0,0.00010958,2]
[353219309,1739665839162,-500.0,0.00010958,2]
[353219310,1739665839172,-500.0,0.00010958,2]
[353219311,1739665839182,-500.0,0.00010958,2]
[353219312,1739665839191,-500.0,0.00010958,2]
[353219313,1739665839201,-546.6,0.00010958,2]
[353219314,1739665839211,-500.0,0.00010958,2]
[353219315,1739665839220,-500.0,0.00010958,2]
[353219316,1739665839230,-500.0,0.00010958,2]
[353219317,1739665839239,-500.0,0.00010958,2]
[353219318,1739665839249,-500.0,0.00010958,2]
[353219319,1739665839258,-500.0,0.00010958,2]
[353219320,1739665839268,-500.0,0.00010958,2]
[353219321,1739665839279,-500.0,0.00010958,2]
[353219322,1739665839289,-500.0,0.00010958,2]
[353219323,1739665839298,-500.0,0.00010958,2]
[353219324,1739665839308,-500.0,0.00010958,2]
[353219325,1739665839318,-595.89,0.00010958,2]
[353219326,1739665839327,-500.0,0.00010958,2]
[353219327,1739665839337,-500.0,0.00010958,2]
[353219328,1739665839347,-500.0,0.00010958,2]
[353219329,1739665839356,-500.0,0.00010958,2]
[353219330,1739665839365,-500.0,0.00010958,2]
[353219331,1739665839376,-500.0,0.00010958,2]
[353219332,1739665839385,-500.0,0.00010958,2]
[353219333,1739665839395,-500.0,0.00010958,2]
[353219334,1739665839405,-500.0,0.00010958,2]
[353219335,1739665839415,-500.0,0.00010958,2]
[353219336,1739665839424,-313.736218,0.00010958,2]
[353219337,1739665839434,-301.80056774,0.00010958,2]
[353219338,1739665839443,-500.0,0.00010958,2]
[353219339,1739665839453,-513.72,0.00010958,2]
[353219340,1739665839463,-500.0,0.00010958,2]
[353219341,1739665839473,-500.0,0.00010958,2]
[353219342,1739665839482,-191.34140465,0.00010958,2]
[353219343,1739665839492,-509.85918034,0.00010958,2]
[353219344,1739665839501,-500.0,0.00010958,2]
[353219345,1739665839510,-628.21,0.00010958,2]
[353219346,1739665839521,-500.0,0.00010958,2]
[353219347,1739665839531,-500.0,0.00010958,2]
[353219348,1739665839540,-500.0,0.00010958,2]
[353219349,1739665839549,-500.0,0.00010958,2]
[353219350,1739665839559,-1158.88,0.00010958,2]
[353219351,1739665839568,-500.0,0.00010958,2]
[353219352,1739665839578,-500.0,0.00010958,2]
[353219353,1739665839588,-500.0,0.00010958,2]
[353219354,1739665839598,-468.38601235,0.00010958,2]
[353219355,1739665839608,-514.32,0.00010958,2]
[353219356,1739665839617,-171.72439758,0.00010958,2]
[353219357,1739665839628,-500.0,0.00010958,2]
[353219358,1739665839638,-500.0,0.00010958,2]
[353219359,1739665839648,-554.28,0.00010958,2]
[353219360,1739665839658,-500.0,0.00010958,2]
[353219361,1739665839668,-500.0,0.00010958,2]
[353219362,1739665839678,-500.0,0.00010958,2]
[353219363,1739665839687,-500.0,0.00010958,2]
[353219364,1739665839696,-500.0,0.00010958,2]
[353219365,1739665839706,-500.0,0.00010958,2]
[353219366,1739665839716,-500.0,0.00010958,2]
[353219367,1739665839726,-500.0,0.00010958,2]
[353219368,1739665839736,-564.74,0.00010958,2]
[353219369,1739665839746,-500.0,0.00010958,2]
[353219370,1739665839755,-500.0,0.00010958,2]
[353219371,1739665839765,-500.0,0.00010958,2]
[353219372,1739665839774,-766.97,0.00010958,2]
[353219373,1739665839784,-500.0,0.00010958,2]
[353219374,1739665839797,-500.0,0.00010958,2]
[353219375,1739665839807,-500.0,0.00010958,2]
[353219376,1739665839817,-902.57,0.00010958,2]
[353219377,1739665839827,-500.0,0.00010958,2]
[353219378,1739665839837,-634.48,0.00010958,2]
[353219379,1739665839847,-500.0,0.00010958,2]
[353219380,1739665839856,-632.32,0.00010958,2]
[353219381,1739665839866,-510.61,0.00010958,2]
[353219382,1739665839876,-500.0,0.00010958,2]
[353219383,1739665839886,-700.7,0.00010958,2]
[353219384,1739665839895,-500.0,0.00010958,2]
[353219385,1739665839905,-500.0,0.00010958,2]
[353219386,1739665839914,-569.31,0.00010958,2]
[353219387,1739665839923,-500.0,0.00010958,2]
[353219388,1739665839932,-392.04702223,0.00010958,2]
[353219389,1739665839943,-500.0,0.00010958,2]
[353219390,1739665840104,-585.59,0.00010958,2]
[353219391,1739665840114,-500.0,0.00010958,2]
[353219392,1739665840123,-500.0,0.00010958,2]
[353219393,1739665840132,-500.0,0.00010958,2]
[353219394,1739665840142,-500.0,0.00010958,2]
[353219395,1739665840151,-500.0,0.00010958,2]
[353219396,1739665840161,-679.2,0.00010958,2]
[353219397,1739665840170,-584.46,0.00010958,2]
[353219398,1739665840179,-500.0,0.00010958,2]
[353219399,1739665840189,-500.0,0.00010958,2]
[353219400,1739665840198,-500.0,0.00010958,2]
[353219401,1739665840208,-511.85,0.00010958,2]
[353219402,1739665840217,-500.0,0.00010958,2]
[353219403,1739665840226,-500.0,0.00010958,2]
[353219404,1739665840235,-500.0,0.00010958,2]
[353219405,1739665840245,-768.67,0.00010958,2]
[353219406,1739665840254,-500.0,0.00010958,2]
[353219407,1739665840263,-500.0,0.00010958,2]
[353219408,1739665840272,-500.0,0.00010958,2]
[353219409,1739665840282,-500.0,0.00010958,2]
[353219410,1739665840292,-500.0,0.00010958,2]
[353219411,1739665840301,-500.0,0.00010958,2]
[353219412,1739665840312,-500.0,0.00010958,2]
[353219413,1739665840321,-500.0,0.00010958,2]
[353219414,1739665840331,-312.33919045,0.00010958,2]
[353219415,1739665840340,-500.0,0.00010958,2]
[353219416,1739665840350,-500.0,0.00010958,2]
[353219417,1739665840359,-477.09265186,0.00010958,2]
[353219419,1739665841349,-22.90734814,0.00010958,2]
[353219420,1739665841358,-500.0,0.00010958,2]
[353219421,1739665841367,-500.0,0.00010958,2]
[353219422,1739665841378,-462.60098287,0.00010958,2]
[353219423,1739665841389,-86.20901713,0.00010958,2]
[353219424,1739665841398,-842.47,0.00010958,2]
[353219425,1739665841407,-500.0,0.00010958,2]
[353219426,1739665841416,-500.0,0.00010958,2]
[353219427,1739665841424,-23.64738302,0.00010958,2]
[353219428,1739665841494,-476.35261698,0.00010958,2]
[353219429,1739665841502,-27.74738302,0.00010958,2]
[353219430,1739665841534,-472.25261698,0.00010958,2]
[353219431,1739665841543,-475.47684302,0.00010958,2]
[353219442,1739665845952,-24.52315698,0.00010958,2]
[353219443,1739665845961,-500.0,0.00010958,2]
[353219444,1739665845971,-500.0,0.00010958,2]
[353219445,1739665845982,-500.0,0.00010958,2]
[353219446,1739665845991,-500.0,0.00010958,2]
[353219447,1739665846000,-500.0,0.00010958,2]
[353219448,1739665846009,-1001.25,0.00010958,2]
[353219449,1739665846018,-500.0,0.00010958,2]
[353219450,1739665846028,-1726.24,0.00010958,2]
[353219451,1739665846037,-500.0,0.00010958,2]
[353219452,1739665846047,-500.0,0.00010958,2]
[353219453,1739665846056,-500.0,0.00010958,2]
[353219454,1739665846066,-680.74,0.00010958,2]
[353219455,1739665846075,-500.0,0.00010958,2]
[353219456,1739665846084,-593.74,0.00010958,2]
[353219457,1739665846093,-500.0,0.00010958,2]
[353219458,1739665846102,-500.0,0.00010958,2]
[353219459,1739665846112,-500.0,0.00010958,2]
[353219460,1739665846121,-534.0,0.00010958,2]
[353219461,1739665846131,-500.0,0.00010958,2]
[353219462,1739665846140,-500.0,0.00010958,2]
[353219463,1739665846149,-519.65,0.00010958,2]
[353219464,1739665846158,-500.0,0.00010958,2]
[353219465,1739665846168,-500.0,0.00010958,2]
[353219466,1739665846177,-500.0,0.00010958,2]
[353219467,1739665846186,-500.0,0.00010958,2]
[353219468,1739665846195,-500.0,0.00010958,2]
[353219469,1739665846205,-745.29,0.00010958,2]
[353219470,1739665846214,-500.0,0.00010958,2]
[353219471,1739665846223,-500.0,0.00010958,2]
[353219472,1739665846232,-500.0,0.00010958,2]
[353219473,1739665846241,-656.79,0.00010958,2]
[353219474,1739665846251,-500.0,0.00010958,2]
[353219475,1739665846260,-500.0,0.00010958,2]
[353219476,1739665846270,-421.92499888,0.00010958,2]
[353219477,1739665846283,-78.07500112,0.00010958,2]
[353219478,1739665846292,-271.92499888,0.00010958,2]
[353219479,1739665846323,-228.07500112,0.00010958,2]
[353219480,1739665846333,-450.85125525,0.00010958,2]
[353219481,1739665846344,-49.14874475,0.00010958,2]
[353219482,1739665846353,-450.85125525,0.00010958,2]
[353219483,1739665846374,-49.14874475,0.00010958,2]
[353219485,1739665846383,-500.0,0.00010958,2]
[353219486,1739665846392,-500.0,0.00010958,2]
[353219487,1739665846401,-500.0,0.00010958,2]
[353219488,1739665846410,-500.0,0.00010958,2]
[353219489,1739665846420,-500.0,0.00010958,2]
[353219490,1739665846429,-500.0,0.00010958,2]
[353219491,1739665846438,-500.0,0.00010958,2]
[353219492,1739665846448,-257.00540577,0.00010958,2]
[353219493,1739665846459,-242.99459423,0.00010958,2]
[353219494,1739665846469,-500.0,0.00010958,2]
[353219495,1739665846478,-500.0,0.00010958,2]
[353219496,1739665846487,-500.0,0.00010958,2]
[353219497,1739665846496,-500.0,0.00010958,2]
[353219498,1739665846507,-500.0,0.00010958,2]
[353219499,1739665846515,-500.0,0.00010958,2]
[353219500,1739665846524,-500.0,0.00010958,2]
[353219501,1739665846533,-702.69,0.00010958,2]
[353219502,1739665846543,-500.0,0.00010958,2]
[353219503,1739665846551,-573.08,0.00010958,2]
[353219504,1739665846561,-959.5,0.00010958,2]
[353219505,1739665846570,-586.36,0.00010958,2]
[353219506,1739665846578,-500.0,0.00010958,2]
[353219507,1739665846587,-500.0,0.00010958,2]
[353219508,1739665846596,-500.0,0.00010958,2]
[353219509,1739665846605,-500.0,0.00010958,2]
[353219510,1739665846614,-500.0,0.00010958,2]
[353219511,1739665846623,-206.57540577,0.00010958,2]
[353219512,1739665846672,-387.66459423,0.00010958,2]
[353219513,1739665846681,-500.0,0.00010958,2]
[353219514,1739665846691,-1135.09,0.00010958,2]
[353219515,1739665846699,-555.66,0.00010958,2]
[353219516,1739665846709,-500.0,0.00010958,2]
[353219517,1739665846718,-500.0,0.00010958,2]
[353219518,1739665846727,-500.0,0.00010958,2]
[353219519,1739665846737,-500.0,0.00010958,2]
[353219520,1739665846746,-1109.89,0.00010958,2]
[353219521,1739665846755,-500.0,0.00010958,2]
[353219522,1739665846764,-592.38,0.00010958,2]
[353219523,1739665846773,-500.0,0.00010958,2]
[353219524,1739665846782,-500.0,0.00010958,2]
[353219525,1739665846940,-1313.65,0.00010958,2]
[353219526,1739665846955,-500.0,0.00010958,2]
[353219527,1739665846964,-249.30688037,0.00010958,2]
[353219528,1739665846974,-500.0,0.00010958,2]
[353219529,1739665846983,-500.0,0.00010958,2]
[353219530,1739665846992,-688.96,0.00010958,2]
[353219531,1739665847001,-510.49,0.00010958,2]
[353219532,1739665847011,-500.0,0.00010958,2]
[353219533,1739665847021,-500.0,0.00010958,2]
[353219534,1739665847030,-500.0,0.00010958,2]
[353219535,1739665847040,-500.0,0.00010958,2]
[353219536,1739665847049,-676.34,0.00010958,2]
[353219537,1739665847059,-971.73,0.00010958,2]
[353219538,1739665847068,-589.93,0.00010958,2]
[353219539,1739665847077,-653.83,0.00010958,2]
[353219540,1739665847087,-500.0,0.00010958,2]
[353219541,1739665847096,-500.0,0.00010958,2]
[353219542,1739665847106,-500.0,0.00010958,2]
[353219543,1739665847115,-500.0,0.00010958,2]
[353219544,1739665847124,-500.0,0.00010958,2]
[353219545,1739665847134,-500.0,0.00010958,2]
[353219546,1739665847143,-621.82,0.00010958,2]
[353219547,1739665847153,-500.0,0.00010958,2]
[353219548,1739665847162,-500.0,0.00010958,2]
[353219549,1739665847171,-563.92,0.00010958,2]
[353219550,1739665847180,-500.0,0.00010958,2]
[353219551,1739665847189,-500.0,0.00010958,2]
[353219552,1739665847198,-500.0,0.00010958,2]
[353219553,1739665847207,-500.0,0.00010958,2]
[353219554,1739665847216,-500.0,0.00010958,2]
[353219555,1739665847226,-670.25,0.00010958,2]
[353219556,1739665847234,-500.0,0.00010958,2]
[353219557,1739665847244,-644.49,0.00010958,2]
[353219558,1739665847253,-500.0,0.00010958,2]
[353219559,1739665847262,-787.75,0.00010958,2]
[353219560,1739665847271,-500.0,0.00010958,2]
[353219561,1739665847280,-500.0,0.00010958,2]
[353219562,1739665847289,-500.0,0.00010958,2]
[353219563,1739665847298,-500.0,0.00010958,2]
[353219564,1739665847307,-500.0,0.00010958,2]
[353219565,1739665847316,-500.0,0.00010958,2]
[353219566,1739665847326,-500.0,0.00010958,2]
[353219567,1739665847335,-500.0,0.00010958,2]
[353219568,1739665847344,-500.0,0.00010958,2]
[353219569,1739665847353,-500.0,0.00010958,2]
[353219570,1739665847363,-500.0,0.00010958,2]
[353219571,1739665847372,-500.0,0.00010958,2]
[353219572,1739665847382,-524.64,0.00010958,2]
[353219573,1739665847391,-500.0,0.00010958,2]
[353219574,1739665847400,-500.0,0.00010958,2]
[353219575,1739665847410,-500.0,0.00010958,2]
[353219576,1739665847419,-714.21,0.00010958,2]
[353219577,1739665847428,-500.0,0.00010958,2]
[353219578,1739665847437,-500.0,0.00010958,2]
[353219579,1739665847446,-500.0,0.00010958,2]
[353219580,1739665847455,-500.0,0.00010958,2]
[353219581,1739665847464,-500.0,0.00010958,2]
[353219582,1739665847473,-500.0,0.00010958,2]
[353219583,1739665847483,-500.0,0.00010958,2]
[353219584,1739665847492,-500.0,0.00010958,2]
[353219585,1739665847502,-573.02,0.00010958,2]
[353219586,1739665847511,-641.62,0.00010958,2]
[353219587,1739665847521,-500.0,0.00010958,2]
[353219588,1739665847531,-500.0,0.00010958,2]
[353219589,1739665847540,-374.30720546,0.00010958,2]
[353219590,1739665847550,-500.0,0.00010958,2]
[353219591,1739665847560,-500.0,0.00010958,2]
[353219592,1739665847569,-500.0,0.00010958,2]
[353219593,1739665847579,-500.0,0.00010958,2]
[353219594,1739665847588,-500.0,0.00010958,2]